fUST/lending_fUST_20250612
["ID","MTS","AMOUNT","RATE_DAILY","PERIOD"]
[365467452,1749688244422,-500.0,0.00022973,2]
[365467453,1749688244431,-558.02629121,0.00022973,2]
[365467454,1749688244440,-501.60046574,0.00022973,2]
[365467455,1749688244450,-502.32449755,0.00022973,2]
[365467456,1749688244459,-500.0,0.00022973,2]
[365467457,1749688244468,-500.0,0.00022973,2]
[365467458,1749688244478,-500.0,0.00022973,2]
[365467459,1749688244487,-644.67879016,0.00022973,2]
[365467460,1749688244497,-500.0,0.00022973,2]
[365467461,1749688244507,-500.0,0.00022973,2]
[365467462,1749688244516,-3000.0,0.0002298,2]
[365467463,1749688244526,-3000.0,0.0002299,2]
[365467464,1749688244535,-657.07286,0.0002299,7]
[365467465,1749688244545,-657.07286,0.0002299,7]
[365467466,1749688244555,-1242.092405,0.0002299,7]
[365467467,1749688244564,-1242.092405,0.0002299,7]
[365467468,1749688244574,-800.21,0.00022998,6]
[365467469,1749688244584,-672.99,0.00022999,3]
[365467470,1749688244593,-151.0,0.00022999,7]
[365467471,1749688244603,-151.0,0.00022999,7]
[365467472,1749688244612,-177.371654,0.00022999,7]
[365467473,1749688244622,-177.371654,0.00022999,7]
[365467474,1749688244632,-151.0,0.00022999,7]
[365467475,1749688244642,-151.0,0.00022999,7]
[365467476,1749688244651,-151.0,0.00022999,7]
[365467477,1749688244660,-3000.0,0.00023,2]
[365467478,1749688244669,-32425.47447108,0.00023,2]
[365467479,1749688244678,-206.713056,0.00023,7]
[365467480,1749688244687,-151.0,0.00023,7]
[365467481,1749688244697,-206.713056,0.00023,7]
[365467482,1749688244706,-151.0,0.00023,7]
[365467483,1749688244716,-151.0,0.00023,7]
[365467484,1749688244726,-610.407496,0.00023,7]
[365467485,1749688244735,-610.407496,0.00023,7]
[365467486,1749688244744,-151.0,0.00023,7]
[365467487,1749688244753,-163.365527,0.00023,7]
[365467488,1749688244763,-163.365527,0.00023,7]
[365467489,1749688244773,-184.485682,0.00023,7]
[365467490,1749688244783,-151.0,0.00023,7]
[365467491,1749688244792,-151.0,0.00023,7]
[365467492,1749688244802,-151.0,0.00023,7]
[365467493,1749688244811,-151.0,0.00023,7]
[365467494,1749688244821,-151.0,0.00023,7]
[365467495,1749688244830,-2313.480485,0.00023,2]
[365467496,1749688244840,-2313.480485,0.00023,2]
[365467497,1749688244850,-151.0,0.00023,7]
[365467498,1749688244859,-210.229741,0.00023,7]
[365467499,1749688244869,-210.229741,0.00023,7]
[365467500,1749688244878,-782.570829,0.00023,7]
[365467501,1749688244889,-782.570829,0.00023,7]
[365467502,1749688244898,-151.0,0.00023,7]
[365467503,1749688244908,-151.0,0.00023,8]
[365467504,1749688244917,-229.71724145,0.00023,3]
[365467505,1749688244927,-151.0,0.00023,7]
[365467506,1749688244936,-160.0,0.00023,3]
[365467507,1749688244945,-835.03886221,0.00023,3]
[365467508,1749688244955,-424.19973472,0.00023,3]
[365467509,1749688244964,-160.0,0.00023,3]
[365467510,1749688244973,-160.0,0.00023,3]
[365467511,1749688244982,-12042.23098288,0.00023,2]
[365467512,1749688244991,-213.16534259,0.00023,3]
[365467513,1749688245001,-844.64040732,0.00023,3]
[365467514,1749688245010,-557.938718,0.00023,7]
[365467515,1749688245020,-557.938718,0.00023,7]
[365467516,1749688245029,-272408.86375979,0.00023,20]
[365467517,1749688245045,-4617.99167873,0.00023,20]
[365467553,1749688246609,-460.0,0.00021247,4]
[365467555,1749688246619,-460.0,0.00021247,4]
[365467557,1749688246629,-460.0,0.00021521,4]
[365467559,1749688246640,-4936.99098164,0.00022085,2]
[365467561,1749688246650,-963.0,0.000221,2]
[365467563,1749688246659,-194.23726496,0.0002286,2]
[365467565,1749688246668,-112389.33007771,0.00023,20]
[365467567,1749688246677,-160.0,0.00023,3]
[365467569,1749688246687,-200.0,0.00023,2]
[365467571,1749688246696,-11860.25191276,0.00023,3]
[365467573,1749688246705,-151.0,0.00023,7]
[365467575,1749688246717,-3854.147063,0.0002301,2]
[365467577,1749688246726,-500.0,0.00023013,2]
[365467579,1749688246735,-657.07286,0.00023013,7]
[365467581,1749688246745,-657.07286,0.00023013,7]
[365467583,1749688246755,-1242.092405,0.00023013,7]
[365467585,1749688246764,-1242.092405,0.00023013,7]
[365467587,1749688246774,-365.0707398,0.00023014,2]
[365467589,1749688246783,-365.0707398,0.00023014,2]
[365467591,1749688246792,-365.0707398,0.00023014,2]
[365467593,1749688246801,-365.0707398,0.00023014,2]
[365467595,1749688246811,-337.1665053,0.00023014,2]
[365467597,1749688246820,-153.0,0.00023014,2]
[365467599,1749688246830,-153.0,0.00023014,2]
[365467601,1749688246840,-153.0,0.00023014,2]
[365467603,1749688246849,-153.0,0.00023014,2]
[365467605,1749688246859,-151.0,0.00023014,7]
[365467608,1749688246869,-536.908207,0.00023014,7]
[365467610,1749688246878,-536.908207,0.00023014,7]
[365467612,1749688246888,-2639.26307237,0.00023038,8]
[365467613,1749688246897,-1076.249515,0.00023057,7]
[365467615,1749688246906,-1076.249515,0.00023057,7]
[365467617,1749688246915,-5000.0,0.00023057,2]
[365467620,1749688246925,-168.0,0.00023076,2]
[365467622,1749688246936,-600.0,0.00023086,2]
[365467624,1749688246945,-168.0,0.00023093,2]
[365467626,1749688246954,-1745.0,0.00023093,3]
[365467628,1749688246963,-166.0,0.00023093,3]
[365467630,1749688246972,-504.05556208,0.00023093,3]
[365467632,1749688246983,-166.0,0.00023093,3]
[365467633,1749688246993,-166.0,0.00023093,3]
[365467635,1749688247002,-166.0,0.00023093,3]
[365467637,1749688247011,-166.0,0.00023093,3]
[365467639,1749688247020,-166.0,0.00023093,3]
[365467641,1749688247030,-314.0017448,0.00023093,3]
[365467643,1749688247039,-317.0,0.00023093,3]
[365467645,1749688247048,-800.21,0.00023098,2]
[365467647,1749688247058,-151.0,0.000231,5]
[365467649,1749688247067,-37205.69301891,0.000231,2]
[365467651,1749688247076,-151.0,0.000231,10]
[365467653,1749688247085,-557.938718,0.000231,7]
[365467655,1749688247095,-557.938718,0.000231,7]
[365467657,1749688247107,-151.0,0.000231,7]
[365467659,1749688247116,-3066.0,0.00023141,2]
[365467661,1749688247125,-2639.26307237,0.00023141,8]
[365467663,1749688247134,-460.0,0.00023165,4]
[365467665,1749688247144,-460.0,0.00023165,4]
[365467667,1749688247154,-1125.78,0.00023165,4]
[365467669,1749688247163,-852.43,0.00023165,4]
[365467671,1749688247172,-511.71,0.00023166,4]
[365467673,1749688247182,-747.56,0.00023166,4]
[365467675,1749688247191,-460.0,0.00023166,4]
[365467677,1749688247201,-460.0,0.00023166,4]
[365467679,1749688247210,-460.0,0.00023166,4]
[365467681,1749688247227,-954.29,0.00023166,4]
[365467683,1749688247236,-992.27,0.00023166,4]
[365467686,1749688247246,-456.33,0.00023166,4]
[365467687,1749688247256,-206.0,0.0002318,2]
[365467689,1749688247266,-151.0,0.00023181,7]
[365467691,1749688247275,-2313.480485,0.00023181,2]
[365467701,1749688247288,-2313.480485,0.00023181,2]
[365467705,1749688247396,-898.19,0.00023181,2]
[365467707,1749688247406,-210.229741,0.00023181,7]
[365467709,1749688247416,-210.229741,0.00023181,7]
[365467711,1749688247425,-782.570829,0.00023181,7]
[365467713,1749688247435,-782.570829,0.00023181,7]
[365467715,1749688247445,-263.811991,0.00023181,7]
[365467717,1749688247454,-151.0,0.00023181,7]
[365467719,1749688247463,-500.0,0.00023186,5]
[365467721,1749688247473,-151.0,0.00023187,7]
[365467723,1749688247483,-484.674363,0.00023187,7]
[365467725,1749688247493,-484.674363,0.00023187,7]
[365467727,1749688247502,-151.0,0.00023188,7]
[365467729,1749688247512,-351.761559,0.00023189,7]
[365467731,1749688247521,-800.21,0.00023198,3]
[365467733,1749688247531,-151.0,0.000232,8]
[365467735,1749688247541,-151.0,0.000232,7]
[365467737,1749688247550,-256.072052,0.000232,7]
[365467739,1749688247559,-151.0,0.000232,6]
[365467741,1749688247568,-343.400594,0.000232,30]
[365467743,1749688247578,-762.0,0.000232,2]
[365467745,1749688247587,-942.0,0.00023238,2]
[365467747,1749688247596,-168.3351789,0.00023242,2]
[365467749,1749688247606,-2639.26307237,0.00023245,8]
[365467751,1749688247615,-151.0,0.0002326,7]
[365467753,1749688247627,-151.0,0.0002326,7]
[365467755,1749688247638,-151.0,0.0002326,7]
[365467757,1749688247647,-417.69037756,0.00023262,2]
[365467759,1749688247656,-268.338768,0.0002327,7]
[365467761,1749688247665,-177.371654,0.0002327,7]
[365467763,1749688247676,-177.371654,0.0002327,7]
[365467765,1749688247685,-283.483007,0.0002327,7]
[365467767,1749688247694,-224.121904,0.0002327,7]
[365467769,1749688247704,-206.713056,0.0002327,7]
[365467771,1749688247713,-152.047662,0.0002327,7]
[365467773,1749688247723,-206.713056,0.0002327,7]
[365467775,1749688247732,-151.0,0.0002327,7]
[365467777,1749688247741,-610.407496,0.0002327,7]
[365467779,1749688247750,-610.407496,0.0002327,7]
[365467781,1749688247760,-151.0,0.0002327,7]
[365467783,1749688247769,-163.365527,0.0002327,7]
[365467785,1749688247778,-163.365527,0.0002327,7]
[365467787,1749688247788,-151.0,0.0002327,7]
[365467789,1749688247797,-657.07286,0.0002327,7]
[365467791,1749688247807,-657.07286,0.0002327,7]
[365467793,1749688247817,-1242.092405,0.0002327,7]
[365467795,1749688247831,-1242.092405,0.0002327,7]
[365467797,1749688247840,-153.0,0.00023288,2]
[365467799,1749688247850,-153.0,0.00023288,2]
[365467801,1749688247859,-151.0,0.00023288,4]
[365467803,1749688247868,-438.97473954,0.00023293,2]
[365467805,1749688247878,-151.0,0.00023295,7]
[365467807,1749688247888,-193.34467251,0.00023295,2]
[365467809,1749688247897,-1003.79527052,0.00023295,2]
[365467811,1749688247908,-800.21,0.00023298,7]
[365467813,1749688247917,-500.0,0.000233,3]
[365467815,1749688247929,-500.0,0.000233,3]
[365467817,1749688247939,-500.0,0.000233,3]
[365467819,1749688247949,-536.908207,0.000233,7]
[365467822,1749688247959,-536.908207,0.000233,7]
[365467823,1749688247968,-4256.84383393,0.000233,2]
[365467825,1749688247977,-165.45494643,0.00023307,74]
[365467827,1749688247985,-151.0,0.00023315,4]
[365467829,1749688247995,-1061.58490384,0.00023324,2]
[365467831,1749688248004,-22971.16062566,0.00023328,2]
[365467833,1749688248013,-215.0738,0.0002333,2]
[365467835,1749688248022,-557.938718,0.00023348,7]
[365467837,1749688248032,-557.938725,0.00023348,7]
[365467839,1749688248041,-2639.26307237,0.00023348,9]
[365467841,1749688248050,-8963.86335517,0.0002335,2]
[365467843,1749688248059,-151.0,0.0002335,7]
[365467845,1749688248068,-2313.480485,0.0002335,2]
[365467847,1749688248078,-2313.480485,0.0002335,2]
[365467849,1749688248087,-168.0,0.00023352,2]
[365467851,1749688248096,-1000.0,0.00023368,2]
[365467853,1749688248105,-500.0,0.00023373,2]
[365467855,1749688248114,-503.13665459,0.00023373,2]
[365467857,1749688248123,-500.0,0.00023373,2]
[365467859,1749688248133,-210.229741,0.00023373,7]
[365467861,1749688248143,-210.229741,0.00023373,7]
[365467863,1749688248152,-782.570829,0.00023373,7]
[365467865,1749688248162,-782.570829,0.00023373,7]
[365467867,1749688248171,-151.0,0.00023373,7]
[365467869,1749688248180,-158.718466,0.00023391,2]
[365467871,1749688248189,-800.21,0.00023398,2]
[365467873,1749688248198,-2619.66,0.000234,2]
[365467875,1749688248207,-7638.90551439,0.000234,7]
[365467877,1749688248220,-7638.90551439,0.000234,7]
[365467879,1749688248229,-151.0,0.000234,7]
[365467881,1749688248239,-151.0,0.000234,7]
[365467883,1749688248248,-151.0,0.000234,7]
[365467885,1749688248258,-151.0,0.000234,7]
[365467887,1749688248268,-151.0,0.000234,7]
[365467889,1749688248278,-351.761559,0.000234,7]
[365467891,1749688248289,-1076.249515,0.000234,7]
[365467893,1749688248299,-1076.249515,0.000234,7]
[365467895,1749688248308,-484.674363,0.000234,7]
[365467897,1749688248317,-484.674363,0.000234,7]
[365467899,1749688248326,-21691.35766209,0.000234,7]
[365467901,1749688248339,-10647.32486925,0.000234,7]
[365467904,1749688248350,-6646.05652097,0.000234,7]
[365467907,1749688248375,-460.0,0.00021521,4]
[365467909,1749688248384,-460.0,0.00021795,4]
[365467911,1749688248395,-21557.79543422,0.000234,7]
[365468118,1749688577426,163.191088,0.00013699,2]
[365468216,1749689431823,-5000.0,0.00018711,2]
[365468218,1749689431832,-378.59930124,0.000189,2]
[365468220,1749689431842,-496.58523072,0.00019749,2]
[365468222,1749689431851,-174.71491755,0.0001989,2]
[365468225,1749689431864,-1350.93037704,0.000199,2]
[365468227,1749689431874,-1200.0,0.00019985,2]
[365468229,1749689431883,-800.21,0.00019986,2]
[365468231,1749689431893,-1350.93037678,0.00020072,2]
[365468232,1749689431903,-300.0,0.00020244,2]
[365468233,1749689431912,-300.0,0.00020244,2]
[365468234,1749689431922,-300.0,0.00020244,2]
[365468235,1749689431931,-1350.93037678,0.00020245,2]
[365468236,1749689431941,-1350.93037678,0.00020417,3]
[365468237,1749689431951,-1350.93037678,0.0002059,3]
[365468238,1749689431961,-1350.93037678,0.00020762,3]
[365468239,1749689431971,-1350.93037678,0.00020934,4]
[365468240,1749689431981,-1600.42,0.00020938,2]
[365468241,1749689431991,-618.45668166,0.00021005,2]
[365468242,1749689432001,-300.0,0.00021035,2]
[365468243,1749689432010,-3722.26033333,0.00021036,2]
[365468244,1749689432020,-1350.93037678,0.00021107,4]
[365468245,1749689432029,-256.16146213,0.00021147,2]
[365468246,1749689432039,-173.11,0.00021237,2]
[365468247,1749689432048,-345.5492591,0.00021246,2]
[365468248,1749689432057,-500.0,0.00021246,2]
[365468249,1749689432067,-187.64720845,0.00021246,2]
[365468250,1749689432077,-500.0,0.00021246,2]
[365468251,1749689432086,-367.65835183,0.00021246,2]
[365468252,1749689432096,-233.21778757,0.00021246,2]
[365468253,1749689432106,-500.0,0.00021246,2]
[365468254,1749689432115,-500.0,0.00021246,2]
[365468255,1749689432125,-500.0,0.00021246,2]
[365468256,1749689432135,-500.0,0.00021246,2]
[365468258,1749689432145,-500.0,0.00021246,2]
[365468260,1749689432154,-500.0,0.00021246,2]
[365468262,1749689432163,-620.02,0.00021247,2]
[365468264,1749689432172,-460.0,0.00021247,4]
[365468266,1749689432181,-460.0,0.00021247,4]
[365468268,1749689432190,-460.0,0.00021247,4]
[365468270,1749689432199,-460.0,0.00021247,4]
[365468272,1749689432209,-526.09,0.00021247,4]
[365468274,1749689432218,-460.0,0.00021247,4]
[365468276,1749689432227,-460.0,0.00021247,4]
[365468278,1749689432237,-460.0,0.00021247,4]
[365468280,1749689432246,-460.0,0.00021247,4]
[365468282,1749689432255,-460.0,0.00021247,4]
[365468284,1749689432265,-460.0,0.00021247,4]
[365468286,1749689432274,-636.2,0.00021247,4]
[365468288,1749689432283,-568.29,0.00021247,4]
[365468290,1749689432292,-661.51,0.00021247,4]
[365468292,1749689432302,-1350.93037678,0.00021279,5]
[365468294,1749689432312,-16000.0,0.000213,2]
[365468296,1749689432322,-1256.81036039,0.00021374,2]
[365468298,1749689432331,-1350.93037678,0.00021452,5]
[365468300,1749689432340,-174.71491754,0.00021518,2]
[365468302,1749689432349,-255.241,0.0002152,2]
[365468304,1749689432359,-620.02,0.00021521,2]
[365468306,1749689432368,-460.0,0.00021521,4]
[365468308,1749689432378,-460.0,0.00021521,4]
[365468311,1749689432388,-460.0,0.00021521,4]
[365468313,1749689432398,-460.0,0.00021521,4]
[365468315,1749689432407,-526.09,0.00021521,4]
[365468317,1749689432417,-460.0,0.00021521,4]
[365468319,1749689432427,-460.0,0.00021521,4]
[365468321,1749689432436,-460.0,0.00021521,4]
[365468323,1749689432446,-460.0,0.00021521,4]
[365468325,1749689432456,-460.0,0.00021521,4]
[365468327,1749689432465,-636.2,0.00021521,4]
[365468329,1749689432476,-568.29,0.00021521,4]
[365468331,1749689432485,-661.51,0.00021521,4]
[365468333,1749689432495,-500.0,0.00021535,2]
[365468335,1749689432504,-160.0,0.00021535,2]
[365468337,1749689432514,-727.37048564,0.0002161,2]
[365468339,1749689432524,-213.16534259,0.00021613,2]
[365468341,1749689432533,-160.0,0.00021613,2]
[365468343,1749689432543,-160.0,0.00021613,2]
[365468345,1749689432553,-844.64040732,0.00021613,2]
[365468347,1749689432563,-160.0,0.00021613,2]
[365468349,1749689432572,-835.03886221,0.00021613,2]
[365468351,1749689432582,-424.19973472,0.00021613,2]
[365468353,1749689432591,-229.71724145,0.00021613,2]
[365468355,1749689432601,-1350.93037678,0.00021624,5]
[365468357,1749689432614,-256.16146209,0.00021674,2]
[365468359,1749689432623,-620.02,0.00021795,2]
[365468361,1749689432634,-460.0,0.00021795,4]
[365468363,1749689432643,-460.0,0.00021795,4]
[365468365,1749689432653,-460.0,0.00021795,4]
[365468367,1749689432662,-460.0,0.00021795,4]
[365468369,1749689432672,-526.09,0.00021795,4]
[365468371,1749689432682,-460.0,0.00021795,4]
[365468373,1749689432692,-460.0,0.00021795,4]
[365468375,1749689432701,-460.0,0.00021795,4]
[365468377,1749689432711,-460.0,0.00021795,4]
[365468379,1749689432720,-460.0,0.00021795,4]
[365468381,1749689432730,-636.2,0.00021795,4]
[365468383,1749689432739,-568.29,0.00021795,4]
[365468385,1749689432748,-661.51,0.00021795,4]
[365468387,1749689432758,-1350.93037678,0.00021797,6]
[365468390,1749689432768,-1680.0,0.00021866,2]
[365468392,1749689432778,-2400.62,0.00021889,2]
[365468394,1749689432787,-500.0,0.00021917,2]
[365468396,1749689432797,-313.969481,0.00021961,7]
[365468398,1749689432807,-313.969481,0.00021961,7]
[365468400,1749689432816,-5000.0,0.00021961,2]
[365468402,1749689432826,-994.0558175,0.00021961,2]
[365468404,1749689432835,-500.0,0.00021961,2]
[365468406,1749689432846,-500.0,0.00021961,2]
[365468408,1749689432862,-250.0,0.00021961,2]
[365468410,1749689432872,-207.4,0.00021961,2]
[365468412,1749689432883,-1350.93037678,0.00021969,6]
[365468414,1749689432894,-173.0,0.00022,2]
[365468416,1749689432903,-450.099098,0.00022004,7]
[365468418,1749689432913,-450.099098,0.00022004,7]
[365468420,1749689432923,-151.0,0.00022004,7]
[365468421,1749689432932,-420.0,0.00022038,2]
[365468423,1749689432942,-151.1861261,0.00022045,2]
[365468424,1749689432952,-500.0,0.0002205,2]
[365468426,1749689432968,-620.02,0.00022069,2]
[365468428,1749689432984,-460.0,0.00022069,4]
[365468430,1749689432994,-460.0,0.00022069,4]
[365468431,1749689433003,-460.0,0.00022069,4]
[365468432,1749689433014,-460.0,0.00022069,4]
[365468434,1749689433024,-526.09,0.00022069,4]
[365468435,1749689433035,-460.0,0.00022069,4]
[365468436,1749689433045,-460.0,0.00022069,4]
[365468437,1749689433055,-460.0,0.00022069,4]
[365468438,1749689433066,-460.0,0.00022069,4]
[365468439,1749689433076,-460.0,0.00022069,4]
[365468440,1749689433088,-636.2,0.00022069,4]
[365468441,1749689433098,-568.29,0.00022069,4]
[365468442,1749689433108,-661.51,0.00022069,4]
[365468443,1749689433119,-305.203748,0.0002207,7]
[365468444,1749689433131,-305.203748,0.0002207,7]
[365468445,1749689433142,-500.0,0.00022083,3]
[365468446,1749689433152,-151.0,0.00022085,7]
[365468447,1749689433162,-604.246313,0.00022085,7]
[365468448,1749689433173,-604.246313,0.00022085,7]
[365468449,1749689433183,-500.0,0.00022087,2]
[365468450,1749689433193,-500.0,0.00022087,2]
[365468451,1749689433204,-1350.93037678,0.00022141,6]
[365468452,1749689433214,-464.92183029,0.00022161,2]
[365468453,1749689433224,-500.0,0.00022161,2]
[365468454,1749689433234,-501.44768991,0.00022161,2]
[365468455,1749689433253,-500.0,0.00022161,2]
[365468456,1749689433264,-500.0,0.00022161,2]
[365468457,1749689433274,-500.0,0.00022161,2]
[365468458,1749689433284,-256.16146209,0.00022201,2]
[365468459,1749689433302,-313.969481,0.00022267,7]
[365468460,1749689433315,-313.969481,0.00022267,7]
[365468461,1749689433326,-450.099098,0.00022267,7]
[365468462,1749689433336,-450.099098,0.00022267,7]
[365468463,1749689433346,-151.0,0.00022267,7]
[365468464,1749689433356,-500.0,0.00022282,2]
[365468465,1749689433368,-1350.93037678,0.00022314,7]
[365468466,1749689433378,-620.02,0.00022343,2]
[365468467,1749689433388,-460.0,0.00022343,4]
[365468468,1749689433398,-460.0,0.00022343,4]
[365468469,1749689433407,-460.0,0.00022343,4]
[365468470,1749689433417,-460.0,0.00022343,4]
[365468471,1749689433427,-526.09,0.00022343,4]
[365468472,1749689433437,-179.13563846,0.00022343,4]
[365468473,1749689433447,-460.0,0.00022343,4]
[365468474,1749689433456,-460.0,0.00022343,4]
[365468475,1749689433466,-460.0,0.00022343,4]
[365468476,1749689433477,-460.0,0.00022343,4]
[365468477,1749689433487,-636.2,0.00022343,4]
[365468478,1749689433496,-568.29,0.00022343,4]
[365468479,1749689433506,-661.51,0.00022343,4]
[365468480,1749689433516,-305.203748,0.00022367,7]
[365468481,1749689433526,-305.203748,0.00022367,7]
[365468482,1749689433537,-151.0,0.0002237,7]
[365468483,1749689433546,-604.246313,0.0002237,7]
[365468484,1749689433556,-604.246313,0.0002237,7]
[365468485,1749689433566,-313.969481,0.000224,7]
[365468486,1749689433576,-313.969481,0.000224,7]
[365468487,1749689433586,-151.0,0.000224,7]
[365468488,1749689433595,-450.099098,0.000224,7]
[365468489,1749689433608,-450.099098,0.000224,7]
[365468490,1749689433619,-604.246313,0.000224,7]
[365468491,1749689433630,-604.246313,0.000224,7]
[365468492,1749689433640,-151.0,0.000224,7]
[365468493,1749689433651,-305.203748,0.000224,7]
[365468494,1749689433660,-305.203748,0.000224,7]
[365468495,1749689433670,-160.0,0.000224,7]
[365468496,1749689433679,-844.64040732,0.000224,7]
[365468497,1749689433690,-213.16534259,0.000224,7]
[365468498,1749689433700,-963.0,0.0002242,2]
[365468499,1749689433710,-2160.0,0.0002242,2]
[365468500,1749689433720,-653.0,0.0002242,2]
[365468501,1749689433730,-405.0,0.0002242,2]
[365468502,1749689433739,-405.0,0.0002242,2]
[365468503,1749689433749,-500.0,0.00022465,2]
[365468504,1749689433759,-1350.93037678,0.00022486,7]
[365468505,1749689433769,-5000.0,0.00022509,2]
[365468506,1749689433779,-250.0,0.00022538,2]
[365468507,1749689433789,-151.0,0.0002254,7]
[365468508,1749689433798,-305.203748,0.0002254,7]
[365468509,1749689433807,-305.203748,0.0002254,7]
[365468510,1749689433817,-620.02,0.00022617,2]
[365468511,1749689433974,-460.0,0.00022617,4]
[365468512,1749689433984,-460.0,0.00022617,4]
[365468513,1749689433994,-460.0,0.00022617,4]
[365468514,1749689434004,-460.0,0.00022617,4]
[365468515,1749689434014,-526.09,0.00022617,4]
[365468516,1749689434024,-460.0,0.00022617,4]
[365468517,1749689434033,-373.89691034,0.00022617,4]
[365468518,1749689434043,-460.0,0.00022617,4]
[365468519,1749689434053,-460.0,0.00022617,4]
[365468520,1749689434063,-636.2,0.00022617,4]
[365468521,1749689434072,-568.29,0.00022617,4]
[365468522,1749689434082,-661.51,0.00022617,4]
[365468523,1749689434092,-329.48400199,0.00022631,4]
[365468524,1749689434101,-1350.93037678,0.00022659,7]
[365468525,1749689434111,-450.099098,0.00022699,7]
[365468526,1749689434121,-450.099098,0.00022699,7]
[365468527,1749689434130,-313.969481,0.00022708,7]
[365468528,1749689434139,-313.969481,0.00022708,7]
[365468529,1749689434149,-825.28035834,0.00022709,2]
[365468530,1749689434158,-1000.0,0.00022709,2]
[365468531,1749689434167,-1000.0,0.00022709,2]
[365468532,1749689434177,-256.16146209,0.00022728,2]
[365468533,1749689434186,-151.0,0.00022745,7]
[365468534,1749689434195,-604.246313,0.00022745,7]
[365468535,1749689434204,-604.246313,0.00022745,7]
[365468536,1749689434214,-151.0,0.00022775,7]
[365468537,1749689434223,-305.203748,0.00022775,7]
[365468538,1749689434232,-305.203748,0.00022775,7]
[365468539,1749689434242,-757.91969401,0.000228,2]
[365468540,1749689434251,-1350.93037678,0.00022831,8]
[365468541,1749689434261,-3200.83,0.00022841,2]
[365468542,1749689434271,-620.02,0.00022891,2]
[365468543,1749689434280,-460.0,0.00022891,4]
[365468544,1749689434291,-460.0,0.00022891,4]
[365468545,1749689434300,-460.0,0.00022891,4]
[365468546,1749689434310,-460.0,0.00022891,4]
[365468547,1749689434319,-526.09,0.00022891,4]
[365468548,1749689434328,-460.0,0.00022891,4]
[365468549,1749689434338,-460.0,0.00022891,4]
[365468550,1749689434347,-460.0,0.00022891,4]
[365468551,1749689434356,-636.2,0.00022891,4]
[365468552,1749689434366,-568.29,0.00022891,4]
[365468553,1749689434376,-661.51,0.00022891,4]
[365468554,1749689434387,-313.969481,0.00022896,7]
[365468555,1749689434397,-313.969481,0.00022896,7]
[365468556,1749689434406,-450.099098,0.00022896,7]
[365468557,1749689434415,-450.099098,0.00022896,7]
[365468558,1749689434424,-313.969481,0.000229,7]
[365468559,1749689434434,-313.969481,0.000229,7]
[365468560,1749689434442,-151.0,0.000229,7]
[365468561,1749689434451,-450.099098,0.000229,7]
[365468562,1749689434461,-450.099098,0.000229,7]
[365468563,1749689434470,-604.246313,0.000229,7]
[365468564,1749689434479,-604.246313,0.000229,7]
[365468565,1749689434488,-151.0,0.000229,7]
[365468566,1749689434498,-305.203748,0.000229,7]
[365468567,1749689434507,-305.203748,0.000229,7]
[365468568,1749689434517,-160.0,0.00022905,2]
[365468569,1749689434527,-1337.581992,0.00022931,3]
[365468570,1749689434536,-151.0,0.00022949,7]